fUSD/lending_fUSD_20250206
["ID","MTS","AMOUNT","RATE_DAILY","PERIOD"]
[351991497,1738870247281,-500.0,0.00016574,2]
[351991499,1738870247291,-500.0,0.00016574,2]
[351991501,1738870247302,-500.0,0.00016574,2]
[351991503,1738870247312,-500.0,0.00016574,2]
[351991505,1738870247323,-500.95302455,0.00016574,2]
[351991507,1738870247332,-500.0,0.00016574,2]
[351991509,1738870247343,-500.0,0.00016574,2]
[351991511,1738870247354,-500.0,0.00016574,2]
[351991512,1738870247364,-500.0,0.00016574,2]
[351991515,1738870247374,-500.0,0.00016574,2]
[351991517,1738870247384,-500.0,0.00016574,2]
[351991518,1738870247394,-500.0,0.00016574,2]
[351991521,1738870247404,-500.0,0.00016574,2]
[351991523,1738870247415,-500.0,0.00016574,2]
[351991525,1738870247426,-500.0,0.00016574,2]
[351991527,1738870247436,-399.56163965,0.00016574,2]
[351991528,1738870247447,-500.0,0.00016574,2]
[351991530,1738870247457,-500.0,0.00016574,2]
[351991532,1738870247467,-500.0,0.00016574,2]
[351991534,1738870247479,-500.0,0.00016574,2]
[351991536,1738870247489,-502.56,0.00016574,2]
[351991538,1738870247499,-500.0,0.00016574,2]
[351991540,1738870247509,-500.0,0.00016574,2]
[351991541,1738870247523,-500.0,0.00016574,2]
[351991542,1738870247534,-500.0,0.00016574,2]
[351991543,1738870247544,-500.0,0.00016574,2]
[351991544,1738870247553,-500.0,0.00016574,2]
[351991545,1738870247563,-346.28420867,0.00016574,2]
[351991546,1738870247573,-500.0,0.00016574,2]
[351991547,1738870247584,-500.0,0.00016574,2]
[351991548,1738870247593,-500.0,0.00016574,2]
[351991549,1738870247604,-554.51,0.00016574,2]
[351991550,1738870247614,-500.0,0.00016574,2]
[351991551,1738870247625,-500.0,0.00016574,2]
[351991552,1738870247635,-500.0,0.00016574,2]
[351991554,1738870247646,-501.24997163,0.00016574,2]
[351991555,1738870247657,-500.0,0.00016574,2]
[351991557,1738870247667,-500.0,0.00016574,2]
[351991559,1738870247676,-500.0,0.00016574,2]
[351991561,1738870247682,-987.7,0.00016574,2]
[351991563,1738870247691,-537.87,0.00016574,2]
[351991565,1738870247700,-500.0,0.00016574,2]
[351991567,1738870247708,-500.0,0.00016574,2]
[351991569,1738870247718,-500.0,0.00016574,2]
[351991571,1738870247729,-500.0,0.00016574,2]
[351991573,1738870247739,-931.76,0.00016574,2]
[351991575,1738870247749,-500.0,0.00016574,2]
[351991577,1738870247760,-500.0,0.00016574,2]
[351991579,1738870247772,-671.42,0.00016574,2]
[351991580,1738870247782,-500.0,0.00016574,2]
[351991583,1738870247792,-849.26,0.00016574,2]
[351991584,1738870247802,-500.0,0.00016574,2]
[351991587,1738870247812,-500.0,0.00016574,2]
[351991588,1738870247822,-416.6673528,0.00016574,2]
[351991590,1738870247832,-500.0,0.00016574,2]
[351991592,1738870247842,-500.0,0.00016574,2]
[351991595,1738870247855,-880.65,0.00016574,2]
[351991596,1738870247865,-501.62463423,0.00016574,2]
[351991598,1738870247875,-500.0,0.00016574,2]
[351991600,1738870247884,-500.55276597,0.00016574,2]
[351991602,1738870247895,-500.0,0.00016574,2]
[351991604,1738870247905,-1890.06,0.00016574,2]
[351991606,1738870247915,-500.0,0.00016574,2]
[351991608,1738870247925,-500.0,0.00016574,2]
[351991610,1738870247935,-501.43446108,0.00016574,2]
[351991612,1738870247946,-500.0,0.00016574,2]
[351991614,1738870247956,-500.0,0.00016574,2]
[351991616,1738870247965,-2027.33,0.00016574,2]
[351991618,1738870247975,-500.0,0.00016574,2]
[351991620,1738870247987,-501.02306031,0.00016574,2]
[351991622,1738870247997,-500.0,0.00016574,2]
[351991624,1738870248006,-500.0,0.00016574,2]
[351991626,1738870248018,-500.0,0.00016574,2]
[351991628,1738870248030,-500.0,0.00016574,2]
[351991630,1738870248042,-500.0,0.00016574,2]
[351991632,1738870248052,-500.0,0.00016574,2]
[351991634,1738870248063,-500.0,0.00016574,2]
[351991636,1738870248075,-500.0,0.00016574,2]
[351991638,1738870248086,-501.27836274,0.00016574,2]
[351991640,1738870248097,-500.0,0.00016574,2]
[351991642,1738870248107,-666.04,0.00016574,2]
[351991644,1738870248118,-500.0,0.00016574,2]
[351991646,1738870248131,-500.0,0.00016574,2]
[351991649,1738870248143,-323.73332014,0.00016574,2]
[351991650,1738870248154,-500.0,0.00016574,2]
[351991652,1738870248164,-500.0,0.00016574,2]
[351991654,1738870248175,-500.0,0.00016574,2]
[351991656,1738870248185,-500.0,0.00016574,2]
[351991658,1738870248195,-513.57,0.00016574,2]
[351991660,1738870248206,-501.4207582,0.00016574,2]
[351991662,1738870248217,-442.25225934,0.00016574,2]
[351991664,1738870248227,-769.1,0.00016574,2]
[351991666,1738870248238,-500.0,0.00016574,2]
[351991668,1738870248250,-500.0,0.00016574,2]
[351991670,1738870248263,-500.0,0.00016574,2]
[351991672,1738870248277,-500.0,0.00016574,2]
[351991674,1738870248288,-500.0,0.00016574,2]
[351991676,1738870248298,-500.0,0.00016574,2]
[351991678,1738870248307,-507.01952264,0.00016574,2]
[351991680,1738870248318,-500.0,0.00016574,2]
[351991682,1738870248328,-500.0,0.00016574,2]
[351991684,1738870248338,-500.0,0.00016574,2]
[351991686,1738870248348,-500.0,0.00016574,2]
[351991688,1738870248358,-548.06,0.00016574,2]
[351991689,1738870248368,-500.0,0.00016574,2]
[351991691,1738870248378,-300.0,0.00016574,2]
[351991693,1738870248388,-500.0,0.00016574,2]
[351991695,1738870248398,-500.0,0.00016574,2]
[351991697,1738870248407,-667.64,0.00016574,2]
[351991699,1738870248417,-500.0,0.00016574,2]
[351991701,1738870248428,-500.0,0.00016574,2]
[351991703,1738870248438,-500.0,0.00016574,2]
[351991705,1738870248449,-500.0,0.00016574,2]
[351991707,1738870248460,-500.0,0.00016574,2]
[351991709,1738870248471,-501.11,0.00016574,2]
[351991711,1738870248481,-657.23,0.00016574,2]
[351991713,1738870248492,-500.0,0.00016574,2]
[351991715,1738870248502,-500.0,0.00016574,2]
[351991717,1738870248512,-500.0,0.00016574,2]
[351991719,1738870248524,-500.0,0.00016574,2]
[351991721,1738870248535,-500.0,0.00016574,2]
[351991723,1738870248545,-500.0,0.00016574,2]
[351991725,1738870248555,-500.0,0.00016574,2]
[351991727,1738870248566,-500.0,0.00016574,2]
[351991729,1738870248576,-500.0,0.00016574,2]
[351991731,1738870248586,-500.0,0.00016574,2]
[351991734,1738870248596,-500.0,0.00016574,2]
[351991735,1738870248606,-500.0,0.00016574,2]
[351991738,1738870248617,-500.0,0.00016574,2]
[351991740,1738870248627,-631.75,0.00016574,2]
[351991741,1738870248638,-500.0,0.00016574,2]
[351991743,1738870248648,-500.0,0.00016574,2]
[351991745,1738870248658,-650.97,0.00016574,2]
[351991747,1738870248667,-529.12,0.00016574,2]
[351991749,1738870248677,-500.0,0.00016574,2]
[351991751,1738870248687,-500.0,0.00016574,2]
[351991753,1738870248697,-500.0,0.00016574,2]
[351991755,1738870248706,-500.0,0.00016574,2]
[351991757,1738870248716,-500.0,0.00016574,2]
[351991759,1738870248726,-1000.0,0.00016574,2]
[351991761,1738870248736,-500.0,0.00016574,2]
[351991763,1738870248746,-500.0,0.00016574,2]
[351991765,1738870248756,-500.0,0.00016574,2]
[351991767,1738870248766,-500.0,0.00016575,2]
[351991769,1738870248775,-500.0,0.00016575,2]
[351991771,1738870248784,-436.07576067,0.00016575,2]
[351991773,1738870248793,-500.0,0.00016575,2]
[351991775,1738870248803,-500.0,0.00016575,2]
[351991777,1738870248812,-500.0,0.00016575,2]
[351991779,1738870248822,-500.0,0.00016575,2]
[351991781,1738870248831,-500.0,0.00016575,2]
[351991783,1738870248840,-500.0,0.00016575,2]
[351991785,1738870248850,-500.0,0.00016575,2]
[351991787,1738870248864,-500.0,0.00016575,2]
[351991789,1738870248874,-500.0,0.00016575,2]
[351991791,1738870248883,-500.0,0.00016575,2]
[351991793,1738870248893,-500.0,0.00016575,2]
[351991795,1738870248902,-613.62,0.00016575,2]
[351991797,1738870248911,-500.0,0.00016575,2]
[351991799,1738870248921,-500.0,0.00016575,2]
[351991801,1738870248930,-500.0,0.00016575,2]
[351991803,1738870248940,-500.0,0.00016575,2]
[351991805,1738870248950,-500.0,0.00016575,2]
[351991807,1738870248959,-500.0,0.00016575,2]
[351991809,1738870248969,-500.0,0.00016575,2]
[351991811,1738870248978,-500.0,0.00016575,2]
[351991813,1738870248987,-500.0,0.00016575,2]
[351991815,1738870248996,-500.0,0.00016575,2]
[351991817,1738870249005,-500.0,0.00016575,2]
[351991819,1738870249016,-500.0,0.00016575,2]
[351991821,1738870249025,-500.0,0.00016575,2]
[351991823,1738870249034,-500.0,0.00016575,2]
[351991825,1738870249043,-500.0,0.00016575,2]
[351991827,1738870249052,-500.0,0.00016575,2]
[351991829,1738870249061,-500.0,0.00016575,2]
[351991831,1738870249070,-500.0,0.00016575,2]
[351991833,1738870249079,-500.0,0.00016575,2]
[351991835,1738870249089,-500.0,0.00016575,2]
[351991837,1738870249098,-500.0,0.00016575,2]
[351991838,1738870249107,-500.0,0.00016575,2]
[351991840,1738870249116,-500.0,0.00016575,2]
[351991843,1738870249128,-500.0,0.00016575,2]
[351991845,1738870249137,-500.0,0.00016575,2]
[351991847,1738870249147,-500.0,0.00016575,2]
[351991849,1738870249156,-500.0,0.00016575,2]
[351991851,1738870249165,-500.0,0.00016575,2]
[351991853,1738870249175,-617.58,0.00016575,2]
[351991855,1738870249184,-500.0,0.00016575,2]
[351991856,1738870249193,-500.0,0.00016575,2]
[351991859,1738870249203,-500.0,0.00016575,2]
[351991861,1738870249213,-500.0,0.00016575,2]
[351991863,1738870249222,-500.0,0.00016575,2]
[351991865,1738870249232,-500.0,0.00016575,2]
[351991867,1738870249241,-490.93193303,0.00016575,2]
[351991869,1738870249251,-500.0,0.00016575,2]
[351991871,1738870249261,-500.0,0.00016575,2]
[351991873,1738870249273,-500.0,0.00016575,2]
[351991875,1738870249283,-500.0,0.00016575,2]
[351991877,1738870249293,-500.0,0.00016575,2]
[351991879,1738870249303,-500.0,0.00016575,2]
[351991881,1738870249313,-500.0,0.00016575,2]
[351991883,1738870249323,-915.11,0.00016575,2]
[351991885,1738870249333,-500.0,0.00016575,2]
[351991887,1738870249343,-500.0,0.00016575,2]
[351991889,1738870249352,-500.0,0.00016575,2]
[351991891,1738870249362,-500.0,0.00016575,2]
[351991893,1738870249371,-500.0,0.00016575,2]
[351991895,1738870249381,-500.0,0.00016575,2]
[351991897,1738870249390,-500.0,0.00016575,2]
[351991899,1738870249400,-500.0,0.00016575,2]
[351991901,1738870249410,-390.87347854,0.00016575,2]
[351991903,1738870249420,-500.0,0.00016575,2]
[351991905,1738870249429,-500.0,0.00016575,2]
[351991907,1738870249439,-500.0,0.00016575,2]
[351991909,1738870249450,-500.0,0.00016575,2]
[351991911,1738870249461,-500.0,0.00016575,2]
[351991913,1738870249471,-500.0,0.00016575,2]
[351991915,1738870249482,-500.0,0.00016575,2]
[351991917,1738870249492,-500.0,0.00016575,2]
[351991919,1738870249502,-500.0,0.00016575,2]
[351991921,1738870249512,-500.0,0.00016575,2]
[351991923,1738870249526,-500.0,0.00016575,2]
[351991926,1738870249537,-573.41,0.00016575,2]
[351991928,1738870249547,-500.0,0.00016575,2]
[351991930,1738870249558,-500.0,0.00016575,2]
[351991932,1738870249570,-500.0,0.00016575,2]
[351991934,1738870249581,-500.0,0.00016575,2]
[351991936,1738870249592,-500.0,0.00016575,2]
[351991938,1738870249602,-500.0,0.00016575,2]
[351991940,1738870249613,-500.0,0.00016575,2]
[351991942,1738870249623,-500.0,0.00016575,2]
[351991944,1738870249634,-500.0,0.00016575,2]
[351991946,1738870249645,-521.52,0.00016575,2]
[351991948,1738870249655,-500.0,0.00016575,2]
[351991950,1738870249666,-241.32748123,0.00016575,2]
[351991983,1738870249969,-289.65251877,0.00016575,2]
[351991985,1738870249979,-500.0,0.00016575,2]
[351991987,1738870249989,-387.7387564,0.00016575,2]
[351991989,1738870249999,-500.0,0.00016575,2]
[351991991,1738870250008,-500.0,0.00016575,2]
[351991993,1738870250020,-405.11331533,0.00016575,2]
[351991995,1738870250032,-110.01668467,0.00016575,2]
[351991997,1738870250042,-500.0,0.00016575,2]
[351991999,1738870250052,-500.0,0.00016575,2]
[351992001,1738870250062,-169.39537017,0.00016575,2]
[351992004,1738870250073,-330.60462983,0.00016575,2]
[351992006,1738870250083,-500.0,0.00016575,2]
[351992008,1738870250093,-500.0,0.00016575,2]
[351992010,1738870250102,-623.75,0.00016575,2]
[351992012,1738870250112,-500.0,0.00016575,2]
[351992014,1738870250122,-635.28,0.00016575,2]
[351992016,1738870250132,-500.0,0.00016575,2]
[351992018,1738870250143,-515.78,0.00016575,2]
[351992020,1738870250153,-500.0,0.00016575,2]
[351992022,1738870250163,-966.47,0.00016575,2]
[351992024,1738870250172,-500.0,0.00016575,2]
[351992026,1738870250182,-587.96,0.00016575,2]
[351992028,1738870250192,-500.0,0.00016575,2]
[351992030,1738870250201,-500.0,0.00016575,2]
[351992032,1738870250211,-564.97,0.00016575,2]
[351992034,1738870250221,-500.0,0.00016575,2]
[351992037,1738870250231,-558.67,0.00016575,2]
[351992039,1738870250240,-500.0,0.00016575,2]
[351992041,1738870250250,-553.73,0.00016575,2]
[351992043,1738870250260,-500.0,0.00016575,2]
[351992045,1738870250271,-500.0,0.00016575,2]
[351992047,1738870250281,-552.83,0.00016575,2]
[351992049,1738870250291,-765.6,0.00016575,2]
[351992051,1738870250300,-816.27,0.00016575,2]
[351992053,1738870250310,-500.0,0.00016575,2]
[351992055,1738870250319,-592.28,0.00016575,2]
[351992057,1738870250329,-500.0,0.00016575,2]
[351992059,1738870250338,-500.0,0.00016575,2]
[351992061,1738870250347,-500.0,0.00016575,2]
[351992063,1738870250358,-500.0,0.00016575,2]
[351992065,1738870250367,-819.91,0.00016575,2]
[351992067,1738870250377,-901.73,0.00016575,2]
[351992069,1738870250387,-716.12,0.00016575,2]
[351992071,1738870250397,-500.0,0.00016575,2]
[351992073,1738870250406,-1380.43,0.00016575,2]
[351992075,1738870250416,-500.0,0.00016575,2]
[351992077,1738870250426,-500.0,0.00016575,2]
[351992079,1738870250436,-796.96,0.00016575,2]
[351992081,1738870250446,-500.0,0.00016575,2]
[351992083,1738870250457,-500.0,0.00016575,2]
[351992086,1738870250467,-500.0,0.00016575,2]
[351992088,1738870250477,-610.4,0.00016575,2]
[351992090,1738870250487,-543.77,0.00016575,2]
[351992092,1738870250497,-500.0,0.00016575,2]
[351992094,1738870250507,-585.71,0.00016575,2]
[351992096,1738870250518,-500.0,0.00016575,2]
[351992098,1738870250528,-589.28,0.00016575,2]
[351992100,1738870250538,-528.43,0.00016575,2]
[351992102,1738870250547,-1126.41,0.00016575,2]
[351992104,1738870250557,-1401.4,0.00016575,2]
[351992106,1738870250567,-500.0,0.00016575,2]
[351992108,1738870250577,-500.0,0.00016575,2]
[351992110,1738870250587,-1341.58,0.00016575,2]
[351992112,1738870250597,-1106.96,0.00016575,2]
[351992114,1738870250606,-500.0,0.00016575,2]
[351992116,1738870250616,-565.46,0.00016575,2]
[351992118,1738870250626,-500.0,0.00016575,2]
[351992120,1738870250636,-712.35,0.00016575,2]
[351992123,1738870250645,-1276.49,0.00016575,2]
[351992125,1738870250655,-1062.42,0.00016575,2]
[351992127,1738870250664,-500.0,0.00016575,2]
[351992129,1738870250674,-604.07,0.00016575,2]
[351992131,1738870250683,-500.0,0.00016575,2]
[351992133,1738870250693,-1060.47,0.00016575,2]
[351992135,1738870250702,-758.47,0.00016575,2]
[351992137,1738870250712,-500.0,0.00016575,2]
[351992139,1738870250722,-904.18,0.00016575,2]
[351992141,1738870250731,-705.03,0.00016575,2]
[351992143,1738870250742,-1695.43,0.00016575,2]
[351992145,1738870250752,-500.0,0.00016575,2]
[351992147,1738870250761,-500.0,0.00016575,2]
[351992149,1738870250774,-500.0,0.00016575,2]
[351992151,1738870250784,-500.0,0.00016575,2]
[351992153,1738870250794,-500.0,0.00016575,2]
[351992155,1738870250804,-597.03,0.00016575,2]
[351992157,1738870250815,-500.0,0.00016575,2]
[351992160,1738870250824,-545.31537017,0.00016575,2]
[351992162,1738870250838,-209.43462983,0.00016575,2]
[351992164,1738870250848,-500.0,0.00016575,2]
[351992166,1738870250862,-412.39140418,0.00016575,2]
[351992169,1738870250875,-87.60859582,0.00016575,2]
[351992170,1738870250884,-258.53705344,0.00016575,2]
[351992173,1738870250896,-575.10294656,0.00016575,2]
[351992175,1738870250906,-1227.38,0.00016575,2]
[351992177,1738870250915,-500.0,0.00016575,2]
[351992179,1738870250925,-1894.25577437,0.00016575,2]
[351992221,1738870251605,-1561.54736806,0.00016395,2]
[351992223,1738870251617,-408.23263194,0.00016395,2]
[351992225,1738870251626,-500.0,0.00016438,2]
[351992227,1738870251636,-500.0,0.00016438,2]
[351992229,1738870251645,-635.75422563,0.00016575,2]
[351992231,1738870251655,-804.91,0.00016575,2]
[351992233,1738870251664,-1127.5,0.00016575,2]
[351992235,1738870251674,-500.0,0.00016575,2]
[351992237,1738870251683,-1045.87,0.00016575,2]
[351992239,1738870251693,-1144.62,0.00016575,2]
[351992241,1738870251703,-950.35,0.00016575,2]
[351992243,1738870251712,-500.0,0.00016575,2]
[351992245,1738870251722,-500.0,0.00016575,2]
[351992247,1738870251732,-500.0,0.00016575,2]
[351992249,1738870251741,-754.27,0.00016575,2]
[351992251,1738870251751,-673.1,0.00016575,2]
[351992253,1738870251760,-673.48,0.00016575,2]
[351992255,1738870251771,-500.0,0.00016575,2]
[351992257,1738870251781,-500.0,0.00016575,2]
[351992259,1738870251790,-783.23,0.00016575,2]
[351992261,1738870251799,-588.02,0.00016575,2]
[351992263,1738870251808,-546.25,0.00016575,2]
[351992265,1738870251818,-500.0,0.00016575,2]
[351992267,1738870251827,-1440.51,0.00016575,2]
[351992269,1738870251836,-643.29,0.00016575,2]
[351992271,1738870251847,-552.42,0.00016575,2]
[351992273,1738870251857,-500.0,0.00016575,2]
[351992275,1738870251867,-580.86,0.00016575,2]
[351992277,1738870251876,-500.0,0.00016575,2]
[351992279,1738870251885,-340.57,0.00016575,2]
[351992281,1738870251896,-500.0,0.00016575,2]
[351992283,1738870251906,-500.0,0.00016575,2]
[351992285,1738870251915,-500.0,0.00016575,2]
[351992287,1738870251925,-500.0,0.00016575,2]
[351992289,1738870251936,-553.45,0.00016575,2]
[351992291,1738870251946,-500.0,0.00016575,2]
[351992293,1738870251955,-500.0,0.00016575,2]
[351992295,1738870251964,-500.0,0.00016575,2]
[351992297,1738870251974,-500.0,0.00016575,2]
[351992299,1738870251983,-911.92,0.00016575,2]
[351992301,1738870251994,-500.0,0.00016575,2]
[351992303,1738870252003,-168.55465877,0.00016575,2]
[351992970,1738870328984,151.48325,9.881e-05,2]
[351992971,1738870374604,152.491537,9.881e-05,2]
[351992972,1738870510500,151.48325,9.881e-05,2]
[351992973,1738870513962,46127.17787657,9.9e-05,2]
[351992974,1738870556192,152.491537,9.881e-05,2]
[351992975,1738870627051,266.880568,9.881e-05,2]
[351992976,1738870645897,155.563678,9.881e-05,2]
[351992977,1738870672036,197.579282,9.881e-05,2]
[351992978,1738870710308,488.879,8.851e-05,2]
[351992979,1738870730060,37455.2543,8.973e-05,2]
[351992980,1738870734512,152.491537,9.881e-05,2]
[351992981,1738870748123,5000.0,8.973e-05,2]
[351992982,1738870748752,151.48325,9.881e-05,2]
[351992983,1738870765355,2500.0,8.851e-05,2]
[351992987,1738870771335,3879.866,8.699e-05,2]
[351992988,1738870835770,158.283986,9.881e-05,2]
[351992989,1738870989138,151.48325,9.881e-05,2]
[351992990,1738871034526,152.491537,9.881e-05,2]
[351992994,1738871228955,151.48325,9.881e-05,2]
[351993003,1738871274560,152.491537,9.881e-05,2]
[351993036,1738871432051,-154.0,0.00010137,2]
[351993038,1738871432062,-154.64,0.00010137,2]
[351993040,1738871432075,-152.491537,0.00010566,2]
[351993043,1738871432094,-151.48325,0.0001084,2]
[351993045,1738871432107,-638.44865426,0.00011151,2]
[351993052,1738871432429,-4732.32119022,0.00011151,2]
[351993053,1738871432439,-500.0,0.00011151,2]
[351993054,1738871432449,-152.491537,0.00011251,2]
[351993055,1738871432460,-500.0,0.00012082,2]
[351993056,1738871432471,-304.0,0.00013233,2]
[351993057,1738871432481,-878.89,0.00013532,2]
[351993058,1738871432491,-150.0,0.0001358,2]
[351993059,1738871432501,-150.0,0.0001399,2]
[351993060,1738871432511,-150.0,0.00014028,2]
[351993061,1738871432521,-150.0,0.00014161,2]
[351993062,1738871432533,-544.0,0.00014438,2]
[351993063,1738871432544,-2751.0,0.00014591,2]
[351993064,1738871432556,-167.87,0.00014724,2]
[351993065,1738871432566,-150.0,0.00014779,2]
[351993066,1738871432585,-150.0,0.00014834,2]
[351993067,1738871432595,-249.67,0.00014967,2]
[351993068,1738871432605,-682.58139786,0.00015,2]
[351993069,1738871432618,-2917.41860214,0.00015,2]
[351993070,1738871432628,-150.0,0.00015281,2]
[351993071,1738871432638,-150.0,0.00015304,2]
[351993072,1738871432648,-5301.92988644,0.0001531,2]
[351993073,1738871432660,-2208.02011356,0.0001531,2]
[351993075,1738871432670,-292.86,0.0001531,2]
[351993077,1738871432679,-244.27,0.00015347,2]
[351993079,1738871432689,-150.0,0.000154,2]
[351993081,1738871432698,-150.0,0.00015447,2]
[351993083,1738871432708,-1000.0,0.00015482,2]
[351993085,1738871432717,-150.0,0.00015531,2]
[351993086,1738871432727,-300.0,0.00015531,2]
[351993088,1738871432737,-150.0,0.00015546,2]
[351993091,1738871432747,-984.89,0.00015573,2]
[351993093,1738871432757,-984.89,0.00015573,2]
[351993094,1738871432766,-984.89,0.00015573,2]
[351993097,1738871432778,-984.89,0.00015573,2]
[351993099,1738871432788,-984.89,0.00015573,2]
[351993101,1738871432797,-150.0,0.00015591,2]
[351993103,1738871432807,-150.0,0.00015628,2]
[351993105,1738871432817,-150.0,0.00015728,2]
[351993107,1738871432826,-32.07505958,0.00015779,2]
[351993108,1738871432839,-117.92494042,0.00015779,2]
[351993110,1738871432848,-878.89,0.00015796,2]
[351993112,1738871432858,-150.0,0.00015797,2]
[351993114,1738871432868,-984.89,0.00015878,2]
[351993117,1738871432877,-150.0,0.00015968,2]
[351993120,1738871432886,-984.89,0.00015978,2]
[351993124,1738871432896,-150.0,0.00015994,2]
[351993128,1738871432905,-375.21,0.00016023,2]
[351993132,1738871432915,-379.35,0.00016108,2]
[351993134,1738871432925,-431.53194145,0.00016178,2]
[351993136,1738871432935,-297.53510741,0.000162,2]
[351993138,1738871432945,-187.70470995,0.000162,2]
[351993140,1738871432955,-281.76678614,0.000162,2]
[351993142,1738871432965,-375.85,0.00016228,2]
[351993144,1738871432975,-150.0,0.00016233,2]
[351993146,1738871432985,-150.0,0.0001624,2]
[351993148,1738871432995,-150.0,0.00016266,2]
[351993149,1738871433005,-150.0,0.00016272,2]
[351993151,1738871433015,-160.05929976,0.00016338,2]
[351993154,1738871433030,-10015.76133222,0.00016338,2]
[351993156,1738871433041,-150.0,0.0001635,2]
[351993158,1738871433051,-150.0,0.00016375,2]
[351993160,1738871433061,-984.89,0.00016395,2]
[351993162,1738871433071,-1969.78,0.00016395,2]
[351993163,1738871433082,-984.89,0.00016395,2]
[351993165,1738871433092,-984.89,0.00016395,2]
[351993167,1738871433103,-984.89,0.00016395,2]
[351993169,1738871433115,-984.89,0.00016395,2]
[351993172,1738871433125,-1453.28,0.00016395,2]
[351993173,1738871433136,-163.23012778,0.000164,2]
[351993175,1738871433147,-150.0,0.00016405,2]
[351993177,1738871433157,-381.94,0.00016437,2]
[351993180,1738871433168,-371.43,0.00016437,2]
[351993181,1738871433178,-500.0,0.00016438,2]
[351993184,1738871433189,-500.0,0.00016438,2]
[351993186,1738871433199,-228.13608899,0.00016438,2]
[351993187,1738871433210,-500.0,0.00016438,2]
[351993189,1738871433225,-500.0,0.00016438,2]
[351993191,1738871433235,-255.15463314,0.00016438,2]
[351993193,1738871433246,-500.0,0.00016438,2]
[351993195,1738871433256,-500.0,0.00016438,2]
[351993197,1738871433267,-500.0,0.00016438,2]
[351993199,1738871433279,-500.0,0.00016438,2]
[351993202,1738871433290,-500.0,0.00016438,2]
[351993203,1738871433300,-500.0,0.00016438,2]
[351993206,1738871433310,-500.0,0.00016438,2]
[351993207,1738871433321,-512.0851516,0.00016438,2]
[351993209,1738871433331,-500.0,0.00016438,2]
[351993211,1738871433341,-500.0,0.00016438,2]
[351993213,1738871433352,-500.0,0.00016438,2]
[351993215,1738871433362,-500.0,0.00016438,2]
[351993217,1738871433371,-500.0,0.00016438,2]
[351993219,1738871433383,-500.0,0.00016438,2]
[351993221,1738871433393,-500.0,0.00016438,2]
[351993223,1738871433404,-500.0,0.00016438,2]
[351993225,1738871433415,-500.0,0.00016438,2]
[351993228,1738871433426,-500.0,0.00016438,2]
[351993229,1738871433438,-500.0,0.00016438,2]
[351993231,1738871433448,-500.0,0.00016438,2]
[351993234,1738871433459,-500.0,0.00016438,2]
[351993236,1738871433470,-500.0,0.00016438,2]
[351993237,1738871433480,-500.0,0.00016438,2]
[351993240,1738871433490,-500.0,0.00016438,2]